[Event "December 5 Early 2023"]
[Site "https://www.chess.com"]
[Date "2023.12.05"]
[Round "2"]
[White "Biriukov, Ilja"]
[Black "Jovic, Stanoje"]
[Result "0-1"]
[Board "232"]
[TimeControl "180+1"]
[WhiteFideId "4113373"]
[BlackFideId "905020"]
[WhiteElo "2120"]
[BlackElo "2448"]
[WhiteTeam "RUS"]
[BlackTeam "SRB"]
[WhiteClock "0:00:07"]
[BlackClock "0:00:03"]

1. d4 {[%clk 0:03:00]}  Nf6 {[%clk 0:02:59]} 2. Nc3 {[%clk 0:03:00]}  d5 {[%clk 0:02:58]} 3. Bf4 {[%clk 0:02:59]}  e6 {[%clk 0:02:59]} 4. Qd2 {[%clk 0:02:58]}  Bd6 {[%clk 0:02:57]} 5. O-O-O {[%clk 0:02:57]}  O-O {[%clk 0:02:57]} 6. f3 {[%clk 0:02:56]}  a6 {[%clk 0:02:55]} 7. e4 {[%clk 0:02:55]}  Bb4 {[%clk 0:02:46]} 8. e5 {[%clk 0:02:52]}  Nfd7 {[%clk 0:02:45]} 9. a3 {[%clk 0:02:51]}  Bxc3 {[%clk 0:02:38]} 10. Qxc3 {[%clk 0:02:52]}  b6 {[%clk 0:02:38]} 11. Bd3 {[%clk 0:02:47]}  c5 {[%clk 0:02:37]} 12. Qe1 {[%clk 0:02:41]}  c4 {[%clk 0:02:34]} 13. Be2 {[%clk 0:02:36]}  Nc6 {[%clk 0:02:34]} 14. Qg3 {[%clk 0:02:33]}  b5 {[%clk 0:02:28]} 15. Bh6 {[%clk 0:02:30]}  g6 {[%clk 0:02:28]} 16. Bxf8 {[%clk 0:02:30]}  Qxf8 {[%clk 0:02:27]} 17. h4 {[%clk 0:02:26]}  c3 {[%clk 0:02:26]} 18. bxc3 {[%clk 0:02:24]}  Qxa3+ {[%clk 0:02:25]} 19. Kd2 {[%clk 0:02:24]}  b4 {[%clk 0:02:24]} 20. f4 {[%clk 0:02:22]}  Nxd4 {[%clk 0:02:20]} 21. Rh3 {[%clk 0:02:09]}  Nf5 {[%clk 0:02:11]} 22. Qf3 {[%clk 0:01:59]}  Nc5 {[%clk 0:02:04]} 23. g4 {[%clk 0:01:53]}  bxc3+ {[%clk 0:01:57]} 24. Ke1 {[%clk 0:01:49]}  Ne7 {[%clk 0:01:45]} 25. h5 {[%clk 0:01:40]}  Ne4 {[%clk 0:01:34]} 26. hxg6 {[%clk 0:01:34]}  fxg6 {[%clk 0:01:32]} 27. Rh6 {[%clk 0:01:30]}  Qc5 {[%clk 0:01:19]} 28. Nh3 {[%clk 0:01:21]}  Nc6 {[%clk 0:01:13]} 29. Ng5 {[%clk 0:01:11]}  Nxg5 {[%clk 0:00:48]} 30. fxg5 {[%clk 0:01:08]}  Ra7 {[%clk 0:00:41]} 31. Qf2 {[%clk 0:00:59]}  Qxf2+ {[%clk 0:00:38]} 32. Kxf2 {[%clk 0:01:00]}  Nxe5 {[%clk 0:00:35]} 33. Ke3 {[%clk 0:00:51]}  Nf7 {[%clk 0:00:32]} 34. Rh2 {[%clk 0:00:48]}  Nxg5 {[%clk 0:00:32]} 35. Kf4 {[%clk 0:00:49]}  Nf7 {[%clk 0:00:28]} 36. g5 {[%clk 0:00:46]}  e5+ {[%clk 0:00:27]} 37. Kg3 {[%clk 0:00:46]}  d4 {[%clk 0:00:25]} 38. Bc4 {[%clk 0:00:43]}  Kg7 {[%clk 0:00:21]} 39. Bxf7 {[%clk 0:00:37]}  Rxf7 {[%clk 0:00:21]} 40. Rb1 {[%clk 0:00:35]}  Bf5 {[%clk 0:00:18]} 41. Rb8 {[%clk 0:00:31]}  Ra7 {[%clk 0:00:16]} 42. Re2 {[%clk 0:00:28]}  a5 {[%clk 0:00:14]} 43. Rb1 {[%clk 0:00:17]}  e4 {[%clk 0:00:10]} 44. Kf4 {[%clk 0:00:16]}  d3 {[%clk 0:00:09]} 45. Rf2 {[%clk 0:00:15]}  a4 {[%clk 0:00:08]} 46. Ra1 {[%clk 0:00:14]}  a3 {[%clk 0:00:08]} 47. Ra2 {[%clk 0:00:14]}  d2 {[%clk 0:00:09]} 48. Rf1 {[%clk 0:00:13]}  Be6 {[%clk 0:00:08]} 49. Raa1 {[%clk 0:00:12]}  Ra4 {[%clk 0:00:08]} 50. Ke5 {[%clk 0:00:12]}  Bc4 {[%clk 0:00:07]} 51. Rab1 {[%clk 0:00:10]}  Bxf1 {[%clk 0:00:06]} 52. Rb7+ {[%clk 0:00:10]}  Kf8 {[%clk 0:00:06]} 53. Kf6 {[%clk 0:00:10]}  Ke8 {[%clk 0:00:05]} 54. Ke6 {[%clk 0:00:10]}  Bc4+ {[%clk 0:00:04]} 55. Kd6 {[%clk 0:00:09]}  d1=Q+ {[%clk 0:00:04]} 56. Ke5 {[%clk 0:00:09]}  Qd5+ {[%clk 0:00:04]} 57. Kf6 {[%clk 0:00:08]}  Qxb7 {[%clk 0:00:03]} 58. Ke5 {[%clk 0:00:06]}  Qc7+ {[%clk 0:00:03]} 59. Kf6 {[%clk 0:00:07]}  Qe7# {[%clk 0:00:03]} 0-1

[Event "December 5 Early 2023"]
[Site "https://www.chess.com"]
[Date "2023.12.05"]
[Round "2"]
[White "Hartikainen, Jarmo"]
[Black "Eilers, Stefan"]
[Result "0-1"]
[Board "233"]
[TimeControl "180+1"]
[WhiteFideId "503134"]
[BlackFideId "4609565"]
[WhiteElo "2116"]
[BlackElo "2447"]
[WhiteTeam "FIN"]
[BlackTeam "GER"]
[WhiteClock "0:00:05"]
[BlackClock "0:00:18"]

1. e4 {[%clk 0:03:00]}  Nc6 {[%clk 0:02:56]} 2. Nf3 {[%clk 0:03:00]}  d6 {[%clk 0:02:54]} 3. b3 {[%clk 0:02:58]}  Nf6 {[%clk 0:02:54]} 4. Nc3 {[%clk 0:02:54]}  e5 {[%clk 0:02:53]} 5. Bb2 {[%clk 0:02:53]}  Be7 {[%clk 0:02:54]} 6. Be2 {[%clk 0:02:51]}  O-O {[%clk 0:02:54]} 7. d3 {[%clk 0:02:44]}  Re8 {[%clk 0:02:55]} 8. Nd5 {[%clk 0:02:41]}  Nxd5 {[%clk 0:02:52]} 9. exd5 {[%clk 0:02:41]}  Nb4 {[%clk 0:02:46]} 10. c4 {[%clk 0:02:40]}  a5 {[%clk 0:02:47]} 11. a3 {[%clk 0:02:40]}  Na6 {[%clk 0:02:47]} 12. O-O {[%clk 0:02:37]}  f5 {[%clk 0:02:41]} 13. Bc3 {[%clk 0:02:29]}  b6 {[%clk 0:02:40]} 14. b4 {[%clk 0:02:27]}  axb4 {[%clk 0:02:30]} 15. axb4 {[%clk 0:02:27]}  Bb7 {[%clk 0:02:12]} 16. Qc2 {[%clk 0:02:21]}  g6 {[%clk 0:02:09]} 17. Qb2 {[%clk 0:02:12]}  Nb8 {[%clk 0:02:02]} 18. Rxa8 {[%clk 0:02:10]}  Bxa8 {[%clk 0:02:02]} 19. Re1 {[%clk 0:01:55]}  Nd7 {[%clk 0:01:57]} 20. Bf1 {[%clk 0:01:48]}  Bf6 {[%clk 0:01:52]} 21. Qa3 {[%clk 0:01:14]}  Bb7 {[%clk 0:01:48]} 22. Nd2 {[%clk 0:00:54]}  Bg7 {[%clk 0:01:33]} 23. g3 {[%clk 0:00:53]}  Qa8 {[%clk 0:01:25]} 24. Ra1 {[%clk 0:00:48]}  Qxa3 {[%clk 0:01:17]} 25. Rxa3 {[%clk 0:00:49]}  Ra8 {[%clk 0:01:17]} 26. Rxa8+ {[%clk 0:00:47]}  Bxa8 {[%clk 0:01:18]} 27. Bg2 {[%clk 0:00:47]}  Bb7 {[%clk 0:01:12]} 28. h4 {[%clk 0:00:45]}  Kf7 {[%clk 0:01:11]} 29. Kf1 {[%clk 0:00:45]}  h6 {[%clk 0:01:11]} 30. f4 {[%clk 0:00:29]}  Bf6 {[%clk 0:00:58]} 31. fxe5 {[%clk 0:00:28]}  dxe5 {[%clk 0:00:45]} 32. Nb3 {[%clk 0:00:23]}  Bc8 {[%clk 0:00:40]} 33. Ke2 {[%clk 0:00:21]}  g5 {[%clk 0:00:37]} 34. hxg5 {[%clk 0:00:20]}  hxg5 {[%clk 0:00:38]} 35. c5 {[%clk 0:00:20]}  g4 {[%clk 0:00:25]} 36. cxb6 {[%clk 0:00:17]}  Nxb6 {[%clk 0:00:24]} 37. Nc5 {[%clk 0:00:17]}  f4 {[%clk 0:00:19]} 38. gxf4 {[%clk 0:00:16]}  exf4 {[%clk 0:00:20]} 39. Bxf6 {[%clk 0:00:11]}  f3+ {[%clk 0:00:20]} 40. Kf2 {[%clk 0:00:11]}  Kxf6 {[%clk 0:00:20]} 41. Bf1 {[%clk 0:00:11]}  Nxd5 {[%clk 0:00:19]} 42. Ne4+ {[%clk 0:00:11]}  Ke5 {[%clk 0:00:19]} 43. b5 {[%clk 0:00:11]}  Kd4 {[%clk 0:00:18]} 44. Nf6 {[%clk 0:00:05]}  Nxf6 {[%clk 0:00:18]} 0-1

[Event "December 5 Early 2023"]
[Site "https://www.chess.com"]
[Date "2023.12.05"]
[Round "2"]
[White "Escudero Donoso, Felipe"]
[Black "Yushko, Olga"]
[Result "0-1"]
[Board "236"]
[TimeControl "180+1"]
[WhiteFideId "3410595"]
[BlackFideId "14114500"]
[WhiteElo "2444"]
[BlackElo "2089"]
[WhiteTeam "CHI"]
[BlackTeam "UKR"]
[WhiteClock "0:00:00"]
[BlackClock "0:00:41"]

1. d4 {[%clk 0:02:54]}  e6 {[%clk 0:02:59]} 2. Bf4 {[%clk 0:02:50]}  f5 {[%clk 0:02:59]} 3. e4 {[%clk 0:02:48]}  fxe4 {[%clk 0:02:59]} 4. f3 {[%clk 0:02:48]}  exf3 {[%clk 0:02:55]} 5. Nxf3 {[%clk 0:02:49]}  Nf6 {[%clk 0:02:55]} 6. Bd3 {[%clk 0:02:49]}  Be7 {[%clk 0:02:53]} 7. O-O {[%clk 0:02:44]}  O-O {[%clk 0:02:51]} 8. c3 {[%clk 0:02:43]}  d6 {[%clk 0:02:51]} 9. Nbd2 {[%clk 0:02:40]}  Nc6 {[%clk 0:02:51]} 10. Qc2 {[%clk 0:02:33]}  Qe8 {[%clk 0:02:43]} 11. Rae1 {[%clk 0:02:29]}  Bd7 {[%clk 0:02:38]} 12. Bg5 {[%clk 0:02:26]}  Qh5 {[%clk 0:02:35]} 13. b4 {[%clk 0:02:05]}  Rae8 {[%clk 0:02:22]} 14. b5 {[%clk 0:02:02]}  Nd8 {[%clk 0:02:22]} 15. a4 {[%clk 0:01:57]}  Nf7 {[%clk 0:02:16]} 16. Bh4 {[%clk 0:01:51]}  Ng4 {[%clk 0:02:10]} 17. Bg3 {[%clk 0:01:29]}  Ng5 {[%clk 0:02:07]} 18. Be2 {[%clk 0:01:17]}  Bf6 {[%clk 0:01:42]} 19. Ne4 {[%clk 0:01:00]}  Ne3 {[%clk 0:01:40]} 20. Qd3 {[%clk 0:00:50]}  Nxf1 {[%clk 0:01:40]} 21. Nfxg5 {[%clk 0:00:47]}  Qg6 {[%clk 0:01:32]} 22. Nxf6+ {[%clk 0:00:29]}  gxf6 {[%clk 0:01:23]} 23. Rxf1 {[%clk 0:00:18]}  Qxd3 {[%clk 0:01:18]} 24. Bxd3 {[%clk 0:00:19]}  fxg5 {[%clk 0:01:18]} 25. Re1 {[%clk 0:00:18]}  Kg7 {[%clk 0:01:14]} 26. h3 {[%clk 0:00:16]}  Rf7 {[%clk 0:01:13]} 27. c4 {[%clk 0:00:16]}  Rfe7 {[%clk 0:01:10]} 28. Be4 {[%clk 0:00:12]}  d5 {[%clk 0:01:04]} 29. Bd3 {[%clk 0:00:10]}  c6 {[%clk 0:01:03]} 30. Be5+ {[%clk 0:00:09]}  Kh6 {[%clk 0:01:02]} 31. Rf1 {[%clk 0:00:09]}  cxb5 {[%clk 0:01:00]} 32. Rf6+ {[%clk 0:00:09]}  Kg7 {[%clk 0:00:53]} 33. Rg6+ {[%clk 0:00:04]}  Kf8 {[%clk 0:00:51]} 34. Rf6+ {[%clk 0:00:03]}  Rf7 {[%clk 0:00:51]} 35. Rh6 {[%clk 0:00:03]}  Kg8 {[%clk 0:00:49]} 36. cxd5 {[%clk 0:00:03]}  exd5 {[%clk 0:00:49]} 37. Be2 {[%clk 0:00:02]}  bxa4 {[%clk 0:00:44]} 38. Bh5 {[%clk 0:00:02]}  a3 {[%clk 0:00:45]} 39. Bxf7+ {[%clk 0:00:02]}  Kxf7 {[%clk 0:00:45]} 40. Rxh7+ {[%clk 0:00:03]}  Ke6 {[%clk 0:00:45]} 41. Rh6+ {[%clk 0:00:04]}  Kf5 {[%clk 0:00:45]} 42. Rf6+ {[%clk 0:00:04]}  Ke4 {[%clk 0:00:45]} 43. Rf3 {[%clk 0:00:04]}  Rc8 {[%clk 0:00:43]} 44. Rxa3 {[%clk 0:00:04]}  a6 {[%clk 0:00:42]} 45. Rb3 {[%clk 0:00:04]}  b5 {[%clk 0:00:42]} 46. Ra3 {[%clk 0:00:05]}  Rc6 {[%clk 0:00:42]} 47. Kf2 {[%clk 0:00:05]}  b4 {[%clk 0:00:42]} 48. Re3+ {[%clk 0:00:02]}  Kf5 {[%clk 0:00:42]} 49. Rf3+ {[%clk 0:00:02]}  Kg6 {[%clk 0:00:43]} 50. g4 {[%clk 0:00:02]}  Rc3 {[%clk 0:00:42]} 51. Rf8 {[%clk 0:00:00]}  Rc2+ {[%clk 0:00:41]} 0-1

[Event "December 5 Early 2023"]
[Site "https://www.chess.com"]
[Date "2023.12.05"]
[Round "2"]
[White "Feliz Dotel, Dewar Bienvenido"]
[Black "Liu, Casper"]
[Result "0-1"]
[Board "237"]
[TimeControl "180+1"]
[WhiteFideId "6402801"]
[BlackFideId "1454153"]
[WhiteElo "2087"]
[BlackElo "2441"]
[WhiteTeam "DOM"]
[BlackTeam "DEN"]
[WhiteClock "0:00:00"]
[BlackClock "0:00:18"]

1. d4 {[%clk 0:02:59]}  Nf6 {[%clk 0:02:56]} 2. e3 {[%clk 0:02:59]}  g6 {[%clk 0:02:57]} 3. Nf3 {[%clk 0:02:59]}  Bg7 {[%clk 0:02:58]} 4. Be2 {[%clk 0:03:00]}  O-O {[%clk 0:02:59]} 5. b4 {[%clk 0:03:00]}  a5 {[%clk 0:02:59]} 6. b5 {[%clk 0:02:59]}  c5 {[%clk 0:02:59]} 7. bxc6 {[%clk 0:02:58]}  dxc6 {[%clk 0:02:56]} 8. c4 {[%clk 0:02:54]}  c5 {[%clk 0:02:50]} 9. Nc3 {[%clk 0:02:42]}  b6 {[%clk 0:02:24]} 10. O-O {[%clk 0:02:41]}  Bb7 {[%clk 0:02:23]} 11. Rb1 {[%clk 0:02:36]}  cxd4 {[%clk 0:02:15]} 12. exd4 {[%clk 0:02:33]}  Nc6 {[%clk 0:02:13]} 13. d5 {[%clk 0:02:27]}  Nb4 {[%clk 0:02:10]} 14. a3 {[%clk 0:02:24]}  Na6 {[%clk 0:02:09]} 15. Na4 {[%clk 0:02:18]}  Nd7 {[%clk 0:02:08]} 16. Be3 {[%clk 0:02:05]}  Rb8 {[%clk 0:01:58]} 17. Nxb6 {[%clk 0:01:58]}  Ndc5 {[%clk 0:01:57]} 18. Na4 {[%clk 0:01:48]}  Ne4 {[%clk 0:01:52]} 19. Ng5 {[%clk 0:01:37]}  Nxg5 {[%clk 0:01:45]} 20. Bxg5 {[%clk 0:01:37]}  Qd6 {[%clk 0:01:46]} 21. Qc1 {[%clk 0:01:11]}  Rfc8 {[%clk 0:01:44]} 22. Bf4 {[%clk 0:01:07]}  Be5 {[%clk 0:01:37]} 23. Bxe5 {[%clk 0:01:04]}  Qxe5 {[%clk 0:01:38]} 24. Qe3 {[%clk 0:01:00]}  Qd6 {[%clk 0:00:59]} 25. Rb6 {[%clk 0:00:56]}  Qd7 {[%clk 0:00:50]} 26. Qb3 {[%clk 0:00:34]}  Ba8 {[%clk 0:00:44]} 27. Rxb8 {[%clk 0:00:34]}  Rxb8 {[%clk 0:00:44]} 28. Qc2 {[%clk 0:00:31]}  Qd6 {[%clk 0:00:35]} 29. Qc3 {[%clk 0:00:25]}  Qc7 {[%clk 0:00:25]} 30. Rd1 {[%clk 0:00:13]}  Nc5 {[%clk 0:00:23]} 31. Nxc5 {[%clk 0:00:14]}  Qxc5 {[%clk 0:00:24]} 32. h4 {[%clk 0:00:12]}  a4 {[%clk 0:00:25]} 33. h5 {[%clk 0:00:08]}  Rb3 {[%clk 0:00:24]} 34. Qe5 {[%clk 0:00:09]}  Qd6 {[%clk 0:00:18]} 35. Qxd6 {[%clk 0:00:08]}  exd6 {[%clk 0:00:19]} 36. Rd3 {[%clk 0:00:08]}  Rb1+ {[%clk 0:00:19]} 37. Kh2 {[%clk 0:00:06]}  Bb7 {[%clk 0:00:20]} 38. h6 {[%clk 0:00:03]}  Kf8 {[%clk 0:00:20]} 39. Rc3 {[%clk 0:00:02]}  Ba6 {[%clk 0:00:19]} 40. Bf3 {[%clk 0:00:00]}  Rb3 {[%clk 0:00:18]} 0-1

[Event "December 5 Early 2023"]
[Site "https://www.chess.com"]
[Date "2023.12.05"]
[Round "2"]
[White "Mickiewicz, Piotr"]
[Black "Sailer, Mike"]
[Result "1/2-1/2"]
[Board "241"]
[TimeControl "180+1"]
[WhiteFideId "1114891"]
[BlackFideId "2012901"]
[WhiteElo "2438"]
[BlackElo "2044"]
[WhiteTeam "POL"]
[BlackTeam "USA"]
[WhiteClock "0:00:02"]
[BlackClock "0:00:12"]

1. e4 {[%clk 0:03:00]}  d5 {[%clk 0:02:59]} 2. exd5 {[%clk 0:02:59]}  Qxd5 {[%clk 0:02:58]} 3. Nc3 {[%clk 0:02:58]}  Qd6 {[%clk 0:02:58]} 4. d4 {[%clk 0:02:56]}  c6 {[%clk 0:02:54]} 5. Nf3 {[%clk 0:02:52]}  Bg4 {[%clk 0:02:50]} 6. h3 {[%clk 0:02:35]}  Bxf3 {[%clk 0:02:40]} 7. Qxf3 {[%clk 0:02:36]}  Qxd4 {[%clk 0:02:38]} 8. Be3 {[%clk 0:02:28]}  Qd8 {[%clk 0:02:30]} 9. Rd1 {[%clk 0:01:57]}  Qc8 {[%clk 0:02:23]} 10. Bc4 {[%clk 0:01:48]}  Nf6 {[%clk 0:02:21]} 11. O-O {[%clk 0:01:38]}  e6 {[%clk 0:02:21]} 12. Bg5 {[%clk 0:01:10]}  Be7 {[%clk 0:02:15]} 13. Ne4 {[%clk 0:01:09]}  Nxe4 {[%clk 0:02:02]} 14. Bxe7 {[%clk 0:01:05]}  Kxe7 {[%clk 0:02:01]} 15. Qxe4 {[%clk 0:01:03]}  Nd7 {[%clk 0:01:57]} 16. Rfe1 {[%clk 0:00:58]}  Nf6 {[%clk 0:01:57]} 17. Qh4 {[%clk 0:00:53]}  Rd8 {[%clk 0:01:37]} 18. g4 {[%clk 0:00:30]}  Rxd1 {[%clk 0:01:37]} 19. Rxd1 {[%clk 0:00:28]}  h6 {[%clk 0:01:34]} 20. Qg3 {[%clk 0:00:27]}  Kf8 {[%clk 0:01:20]} 21. h4 {[%clk 0:00:27]}  Nd5 {[%clk 0:01:10]} 22. g5 {[%clk 0:00:26]}  hxg5 {[%clk 0:01:09]} 23. hxg5 {[%clk 0:00:27]}  g6 {[%clk 0:00:52]} 24. Qe5 {[%clk 0:00:26]}  Kg8 {[%clk 0:00:50]} 25. Kg2 {[%clk 0:00:21]}  Qc7 {[%clk 0:00:50]} 26. Rxd5 {[%clk 0:00:20]}  Qxe5 {[%clk 0:00:47]} 27. Rxe5 {[%clk 0:00:21]}  Rd8 {[%clk 0:00:48]} 28. Re2 {[%clk 0:00:21]}  Rd4 {[%clk 0:00:46]} 29. Bd3 {[%clk 0:00:15]}  Rg4+ {[%clk 0:00:46]} 30. Kf3 {[%clk 0:00:15]}  Rxg5 {[%clk 0:00:46]} 31. b4 {[%clk 0:00:15]}  Rd5 {[%clk 0:00:42]} 32. a4 {[%clk 0:00:14]}  Kg7 {[%clk 0:00:31]} 33. a5 {[%clk 0:00:13]}  Rh5 {[%clk 0:00:26]} 34. Re1 {[%clk 0:00:13]}  e5 {[%clk 0:00:24]} 35. Bc4 {[%clk 0:00:12]}  f5 {[%clk 0:00:24]} 36. Ke2 {[%clk 0:00:11]}  Rh3 {[%clk 0:00:22]} 37. Bb3 {[%clk 0:00:10]}  Kf6 {[%clk 0:00:21]} 38. Rd1 {[%clk 0:00:11]}  Ke7 {[%clk 0:00:19]} 39. Rg1 {[%clk 0:00:10]}  Kf6 {[%clk 0:00:18]} 40. a6 {[%clk 0:00:11]}  b6 {[%clk 0:00:17]} 41. Rd1 {[%clk 0:00:11]}  Ke7 {[%clk 0:00:17]} 42. b5 {[%clk 0:00:09]}  c5 {[%clk 0:00:17]} 43. Rd5 {[%clk 0:00:09]}  e4 {[%clk 0:00:16]} 44. Re5+ {[%clk 0:00:08]}  Kd7 {[%clk 0:00:11]} 45. Bd5 {[%clk 0:00:05]}  Kd6 {[%clk 0:00:10]} 46. Re6+ {[%clk 0:00:05]}  Kxd5 {[%clk 0:00:11]} 47. Re7 {[%clk 0:00:05]}  Rc3 {[%clk 0:00:09]} 48. Rxa7 {[%clk 0:00:06]}  Rxc2+ {[%clk 0:00:10]} 49. Ke3 {[%clk 0:00:05]}  Rb2 {[%clk 0:00:10]} 50. Rd7+ {[%clk 0:00:04]}  Ke6 {[%clk 0:00:11]} 51. a7 {[%clk 0:00:04]}  Ra2 {[%clk 0:00:11]} 52. Rb7 {[%clk 0:00:04]}  Kd5 {[%clk 0:00:11]} 53. Rd7+ {[%clk 0:00:04]}  Kc4 {[%clk 0:00:12]} 54. Rb7 {[%clk 0:00:03]}  Kxb5 {[%clk 0:00:12]} 55. Rg7 {[%clk 0:00:03]}  c4 {[%clk 0:00:11]} 56. Kf4 {[%clk 0:00:04]}  c3 {[%clk 0:00:11]} 57. Rc7 {[%clk 0:00:04]}  Kb4 {[%clk 0:00:11]} 58. Ke5 {[%clk 0:00:04]}  b5 {[%clk 0:00:12]} 59. Kd4 {[%clk 0:00:04]}  Rd2+ {[%clk 0:00:12]} 60. Ke3 {[%clk 0:00:04]}  Ra2 {[%clk 0:00:12]} 61. Kd4 {[%clk 0:00:02]}  Rd2+ {[%clk 0:00:12]} 62. Ke3 {[%clk 0:00:02]}  Ra2 {[%clk 0:00:12]} 63. Kd4 {[%clk 0:00:02]} 1/2-1/2

[Event "December 5 Early 2023"]
[Site "https://www.chess.com"]
[Date "2023.12.05"]
[Round "2"]
[White "Swicarz, Maciej"]
[Black "Nikulina, Alena"]
[Result "1-0"]
[Board "242"]
[TimeControl "180+1"]
[WhiteFideId "1113585"]
[BlackFideId "4172051"]
[WhiteElo "2435"]
[BlackElo "2029"]
[WhiteTeam "POL"]
[BlackTeam "RUS"]
[WhiteClock "0:00:11"]
[BlackClock "0:00:01"]

1. e4 {[%clk 0:03:00]}  c5 {[%clk 0:02:59]} 2. Nc3 {[%clk 0:03:01]}  e6 {[%clk 0:02:58]} 3. f4 {[%clk 0:02:56]}  Nc6 {[%clk 0:02:58]} 4. Nf3 {[%clk 0:02:53]}  d5 {[%clk 0:02:58]} 5. exd5 {[%clk 0:02:51]}  exd5 {[%clk 0:02:57]} 6. d4 {[%clk 0:02:51]}  Nf6 {[%clk 0:02:57]} 7. Bb5 {[%clk 0:02:49]}  Bd6 {[%clk 0:02:56]} 8. O-O {[%clk 0:02:43]}  O-O {[%clk 0:02:56]} 9. Kh1 {[%clk 0:02:43]}  cxd4 {[%clk 0:02:38]} 10. Nxd4 {[%clk 0:02:42]}  Bc5 {[%clk 0:02:37]} 11. Nxc6 {[%clk 0:02:34]}  bxc6 {[%clk 0:02:35]} 12. Bxc6 {[%clk 0:02:35]}  Rb8 {[%clk 0:02:12]} 13. Bxd5 {[%clk 0:02:22]}  Ng4 {[%clk 0:02:12]} 14. Qf3 {[%clk 0:02:22]}  Qh4 {[%clk 0:02:04]} 15. h3 {[%clk 0:02:21]}  Nf2+ {[%clk 0:01:59]} 16. Rxf2 {[%clk 0:02:10]}  Bxf2 {[%clk 0:01:58]} 17. Ne4 {[%clk 0:01:58]}  Bb6 {[%clk 0:01:48]} 18. Be3 {[%clk 0:01:29]}  Bxe3 {[%clk 0:01:44]} 19. Qxe3 {[%clk 0:01:30]}  Rxb2 {[%clk 0:01:43]} 20. Bb3 {[%clk 0:01:28]}  Bb7 {[%clk 0:01:27]} 21. Ng5 {[%clk 0:01:17]}  h6 {[%clk 0:01:19]} 22. Nf3 {[%clk 0:01:08]}  Qf6 {[%clk 0:01:13]} 23. Ne5 {[%clk 0:01:04]}  a5 {[%clk 0:00:45]} 24. a4 {[%clk 0:00:45]}  Qf5 {[%clk 0:00:43]} 25. Rc1 {[%clk 0:00:39]}  Be4 {[%clk 0:00:27]} 26. Qc3 {[%clk 0:00:28]}  g6 {[%clk 0:00:13]} 27. Ng4 {[%clk 0:00:25]}  Kh7 {[%clk 0:00:11]} 28. Qxb2 {[%clk 0:00:20]}  h5 {[%clk 0:00:12]} 29. Nf6+ {[%clk 0:00:20]}  Kh6 {[%clk 0:00:11]} 30. Nxe4 {[%clk 0:00:20]}  Qxe4 {[%clk 0:00:11]} 31. Rf1 {[%clk 0:00:20]}  Re8 {[%clk 0:00:10]} 32. Qc1 {[%clk 0:00:20]}  Qe2 {[%clk 0:00:10]} 33. f5+ {[%clk 0:00:20]}  g5 {[%clk 0:00:10]} 34. Bxf7 {[%clk 0:00:19]}  Re7 {[%clk 0:00:11]} 35. Bg6 {[%clk 0:00:18]}  Re3 {[%clk 0:00:10]} 36. Qd1 {[%clk 0:00:13]}  Qc4 {[%clk 0:00:08]} 37. f6 {[%clk 0:00:12]}  Qc6 {[%clk 0:00:07]} 38. Kh2 {[%clk 0:00:10]}  Kxg6 {[%clk 0:00:07]} 39. f7 {[%clk 0:00:10]}  Qc7+ {[%clk 0:00:07]} 40. Kg1 {[%clk 0:00:10]}  Qxf7 {[%clk 0:00:05]} 41. Rxf7 {[%clk 0:00:10]}  Kxf7 {[%clk 0:00:06]} 42. Qd5+ {[%clk 0:00:09]}  Re6 {[%clk 0:00:06]} 43. Qxg5 {[%clk 0:00:09]}  Rf6 {[%clk 0:00:02]} 44. Qxh5+ {[%clk 0:00:09]}  Ke6 {[%clk 0:00:03]} 45. Qxa5 {[%clk 0:00:09]}  Rf5 {[%clk 0:00:03]} 46. Qxf5+ {[%clk 0:00:08]}  Kxf5 {[%clk 0:00:03]} 47. a5 {[%clk 0:00:09]}  Ke5 {[%clk 0:00:04]} 48. a6 {[%clk 0:00:10]}  Kd4 {[%clk 0:00:01]} 49. a7 {[%clk 0:00:11]} 1-0

[Event "December 5 Early 2023"]
[Site "https://www.chess.com"]
[Date "2023.12.05"]
[Round "2"]
[White "Reinecke, Katharina"]
[Black "Can, Melih Kaan"]
[Result "0-1"]
[Board "243"]
[TimeControl "180+1"]
[WhiteFideId "12929727"]
[BlackFideId "6317383"]
[WhiteElo "2012"]
[BlackElo "2434"]
[WhiteTeam "GER"]
[BlackTeam "TUR"]
[WhiteClock "0:00:00"]
[BlackClock "0:00:24"]

1. d4 {[%clk 0:03:00]}  Nf6 {[%clk 0:02:59]} 2. c4 {[%clk 0:03:00]}  e6 {[%clk 0:02:57]} 3. Nf3 {[%clk 0:02:58]}  d5 {[%clk 0:02:55]} 4. g3 {[%clk 0:02:57]}  Be7 {[%clk 0:02:54]} 5. Bg2 {[%clk 0:02:56]}  O-O {[%clk 0:02:54]} 6. O-O {[%clk 0:02:56]}  c6 {[%clk 0:02:51]} 7. b3 {[%clk 0:02:53]}  Nbd7 {[%clk 0:02:48]} 8. Bb2 {[%clk 0:02:53]}  b6 {[%clk 0:02:36]} 9. Ne5 {[%clk 0:02:50]}  Nxe5 {[%clk 0:02:31]} 10. dxe5 {[%clk 0:02:50]}  Nd7 {[%clk 0:02:31]} 11. Nd2 {[%clk 0:02:36]}  Bb7 {[%clk 0:02:23]} 12. e4 {[%clk 0:02:30]}  Nc5 {[%clk 0:02:15]} 13. exd5 {[%clk 0:02:22]}  cxd5 {[%clk 0:02:13]} 14. cxd5 {[%clk 0:02:15]}  Bxd5 {[%clk 0:02:10]} 15. Nf3 {[%clk 0:02:13]}  Qc7 {[%clk 0:02:04]} 16. Rc1 {[%clk 0:02:10]}  Qb7 {[%clk 0:02:00]} 17. Qe2 {[%clk 0:02:04]}  Rad8 {[%clk 0:01:51]} 18. Rfd1 {[%clk 0:02:03]}  a5 {[%clk 0:01:42]} 19. Nh4 {[%clk 0:01:27]}  Bxh4 {[%clk 0:01:36]} 20. Bxd5 {[%clk 0:01:26]}  Rxd5 {[%clk 0:01:35]} 21. gxh4 {[%clk 0:01:16]}  Rfd8 {[%clk 0:01:31]} 22. Ba3 {[%clk 0:00:53]}  Nd3 {[%clk 0:01:12]} 23. Bd6 {[%clk 0:00:33]}  Nf4 {[%clk 0:00:48]} 24. Qg4 {[%clk 0:00:20]}  Rxd1+ {[%clk 0:00:44]} 25. Rxd1 {[%clk 0:00:19]}  Qe4 {[%clk 0:00:44]} 26. Qg3 {[%clk 0:00:14]}  Ne2+ {[%clk 0:00:44]} 27. Kf1 {[%clk 0:00:12]}  Nxg3+ {[%clk 0:00:45]} 28. hxg3 {[%clk 0:00:13]}  f6 {[%clk 0:00:35]} 29. Re1 {[%clk 0:00:09]}  Qh1+ {[%clk 0:00:35]} 30. Ke2 {[%clk 0:00:08]}  Qe4+ {[%clk 0:00:35]} 31. Kf1 {[%clk 0:00:08]}  Qf5 {[%clk 0:00:27]} 32. Rc1 {[%clk 0:00:07]}  fxe5 {[%clk 0:00:26]} 33. Bc7 {[%clk 0:00:07]}  Qd3+ {[%clk 0:00:26]} 34. Kg2 {[%clk 0:00:04]}  Qd5+ {[%clk 0:00:25]} 35. Kg1 {[%clk 0:00:00]}  Qd2 {[%clk 0:00:24]} 0-1